bitfinex/quotes_ETHUSD_20250605
["timestamp","ask_amount","ask_price","bid_price","bid_amount"]
[1749148820330,2.61187736,2581.0,2580.1,0.02]
[1749148820531,8.491,2580.9,2580.5,3.91521414]
[1749148820732,1.837,2580.9,2580.8,3.87476751]
[1749148821043,8.491,2580.9,2580.8,3.87476751]
[1749148821238,1.837,2581.0,2580.9,3.87461738]
[1749148821555,8.492,2581.0,2580.9,3.87461738]
[1749148822162,1.837,2581.0,2580.9,3.87461738]
[1749148822365,8.491,2581.0,2580.9,3.87461738]
[1749148823340,1.837,2581.0,2580.9,3.87461738]
[1749148823776,1.837,2581.0,2580.9,21.03704511]
[1749148823986,8.491,2581.0,2580.9,21.07704511]
[1749148824205,1.837,2581.0,2580.9,21.07704511]
[1749148824402,0.7583,2581.9,2581.8,3.87326671]
[1749148824685,1.834,2581.9,2581.8,3.87326671]
[1749148824865,8.369,2582.0,2581.9,3.87311669]
[1749148825068,16.857,2582.0,2581.9,3.87311669]
[1749148825286,10.203,2582.0,2581.9,3.87311669]
[1749148825445,16.857,2582.0,2581.9,3.87311669]
[1749148826598,2.50250452,2582.6,2582.0,3.87288865]
[1749148826753,1.834,2582.4,2582.3,3.87251674]
[1749148827150,8.487,2582.4,2582.3,3.87251674]
[1749148828051,0.7906,2582.6,2582.1,3.87281202]
[1749148828252,9.73077362,2582.2,2582.0,3.87285684]
[1749148828454,7.62607736,2582.1,2581.9,3.87306642]
[1749148828678,7.62607736,2582.1,2582.0,3.87296669]
[1749148829709,6.653,2582.1,2582.0,3.87296669]
[1749148830054,6.653,2582.1,2581.9,3.87303944]
[1749148830269,6.653,2582.1,2582.0,3.87296669]
[1749148830469,6.653,2582.1,2581.5,19.91365102]
[1749148830470,0.7593,2582.0,2581.5,0.04]
[1749148830666,6.653,2582.1,2581.5,3.91370248]
[1749148830866,1.89770736,2582.0,2581.9,3.87299314]
[1749148832911,1.89770736,2582.0,2581.9,3.87311669]
[1749148833822,1.89770736,2582.0,2581.3,16.04]
[1749148834107,9.73077362,2581.8,2581.6,3.87355124]
[1749148834307,7.62407736,2581.7,2581.5,19.87363648]
[1749148834611,1.833,2581.6,2581.2,3.87416437]
[1749148834785,12.29948119,2581.7,2580.8,0.04]
[1749148834786,0.97307736,2581.7,2581.5,3.87361119]
[1749148834983,6.651,2581.6,2581.5,3.91361119]
[1749148835293,1.833,2581.9,2581.8,3.87326671]
[1749148835494,8.484,2581.9,2581.8,3.87326671]
[1749148836173,1.833,2581.9,2581.8,3.87326671]
[1749148836478,6.651,2581.9,2581.8,3.87326671]
[1749148837793,9.73077362,2582.2,2582.1,3.87281669]
[1749148837983,0.7943,2582.4,2582.3,3.87251674]
[1749148838162,10.40293178,2582.4,2582.3,3.87251674]
[1749148838363,1.12563178,2582.4,2582.3,3.87251674]
[1749148838567,1.833,2582.5,2582.4,3.87236679]
[1749148839102,8.483,2582.5,2582.4,3.87236679]
[1749148839602,8.483,2582.5,2582.3,3.87249118]
[1749148839904,8.483,2582.5,2582.4,3.87236679]
[1749148840403,1.833,2582.5,2582.4,3.87236679]
[1749148840599,8.483,2582.5,2582.4,3.87236679]
[1749148840802,1.833,2582.5,2582.4,3.87236679]
[1749148840969,8.483,2582.5,2582.4,3.87236679]
[1749148841166,1.833,2582.5,2582.4,3.87236679]
[1749148841371,8.482,2582.5,2582.4,3.87236679]
[1749148841591,1.833,2582.5,2582.4,3.87236679]
[1749148841794,10.92559259,2582.9,2582.8,3.87176707]
[1749148841795,0.02,2582.9,2582.8,3.87176707]
[1749148842003,8.502,2582.9,2582.8,3.87176707]
[1749148843227,1.853,2582.9,2582.8,3.87176707]
[1749148843374,8.502,2582.9,2582.8,3.87176707]
[1749148843577,0.02,2582.9,2582.8,19.87176707]
[1749148843777,6.669,2582.9,2582.8,22.25013285]
[1749148844315,6.669,2582.9,2582.8,6.25013285]
[1749148844515,6.669,2582.9,2582.8,3.87176707]
[1749148844711,0.02,2582.9,2582.8,3.87176707]
[1749148844911,6.668,2582.9,2582.8,3.87176707]
[1749148848718,6.668,2582.9,2582.4,0.04]
[1749148848985,0.02,2582.9,2582.8,3.87176707]
[1749148849120,6.666,2582.9,2582.8,3.91176707]
[1749148849588,6.666,2582.9,2582.8,19.91176707]
[1749148849788,6.666,2582.9,2582.8,22.29013267]
[1749148850200,0.02,2582.9,2582.8,22.29013267]
[1749148850407,6.666,2582.9,2582.8,22.29013267]
[1749148851004,6.665,2582.9,2582.8,22.29013267]
[1749148853338,6.665,2582.9,2582.8,22.84013267]
[1749148853562,0.02,2582.9,2582.8,22.84013267]
[1749148853849,6.665,2582.9,2582.8,22.84013267]
[1749148854009,0.02,2582.9,2582.8,22.84013267]
[1749148854196,6.664,2582.9,2582.8,22.84013267]
[1749148854815,0.02,2582.9,2582.8,22.84013267]
[1749148855227,6.664,2582.9,2582.8,22.84013267]
[1749148858453,6.664,2582.9,2582.8,3.91176707]
[1749148858621,6.664,2582.9,2582.8,19.91176707]
[1749148858829,6.664,2582.9,2582.8,20.46176707]
[1749148858830,0.02,2582.9,2582.8,20.46176707]
[1749148859158,6.662,2582.9,2582.8,20.46176707]
[1749148859719,6.662,2582.9,2582.8,19.91176707]
[1749148860117,6.662,2582.9,2582.8,22.29013267]
[1749148860563,0.02,2582.9,2582.8,22.84013267]
[1749148861161,6.662,2582.9,2582.8,22.84013267]
[1749148861471,0.02,2582.9,2582.8,22.84013267]
[1749148862654,1.829,2584.1,2583.8,3.87026859]
[1749148862826,6.661,2583.9,2583.8,3.87026859]
[1749148864327,6.661,2583.9,2583.7,3.87038787]
[1749148864328,17.31138822,2583.9,2583.7,3.87032104]
[1749148864523,17.31138822,2583.9,2583.4,3.8707329]
[1749148864854,1.3084,2583.8,2583.4,3.87085968]
[1749148865056,1.3084,2583.8,2583.5,3.87070712]
[1749148865225,9.73077362,2583.6,2583.3,3.87093588]
[1749148865420,7.61307736,2583.5,2583.4,3.8708053]
[1749148866227,7.61307736,2583.5,2583.2,3.87108678]
[1749148866435,0.7999,2583.4,2583.3,3.87100694]
[1749148866623,0.7999,2583.6,2583.5,3.87071801]
[1749148866827,7.4399,2583.6,2583.5,3.87071801]
[1749148867681,7.4399,2583.6,2582.8,3.87176707]
[1749148867962,9.73077362,2583.5,2583.2,3.87107715]
[1749148868125,12.01768836,2583.5,2583.3,3.87091042]
[1749148868332,2.28691474,2583.5,2583.4,3.87086784]
[1749148868565,0.7999,2583.6,2583.5,3.87071801]
[1749148868771,7.4389,2583.6,2583.5,3.87071801]
[1749148868932,0.7999,2583.6,2583.5,3.87071801]
[1749148869127,1.2999,2583.8,2583.7,3.87041839]
[1749148869449,9.7669,2583.8,2583.7,3.87041839]
[1749148870150,9.7669,2583.8,2583.6,3.87048637]
[1749148870334,9.73077362,2583.7,2583.0,16.0]
[1749148870730,10.09191114,2583.7,2583.4,3.87079645]
[1749148870930,0.7999,2583.6,2583.2,3.87105887]
[1749148871384,0.7999,2583.3,2582.5,3.87221684]
[1749148873745,0.7847,2582.9,2582.8,3.87164597]
[1749148874568,0.7706,2583.1,2583.0,3.87146728]
[1749148874839,9.2366,2583.1,2583.0,3.87146728]
[1749148875491,9.2366,2583.1,2582.4,0.39371785]
[1749148875686,18.96737362,2583.1,2582.4,1.64337179]
[1749148875842,0.36159606,2583.0,2582.6,3.8719409]
[1749148876041,9.73077362,2582.8,2582.5,3.87215902]
[1749148876245,6.638,2582.7,2582.6,3.8720669]
[1749148876546,6.638,2582.7,2582.5,3.8721375]
[1749148876766,0.8304,2582.6,2582.5,3.87213204]
[1749148877074,2.55031736,2582.6,2582.3,3.87244479]
[1749148877278,11.55877362,2582.5,2582.3,3.87244479]
[1749148877757,11.55877362,2582.5,2582.4,3.87236679]
[1749148878077,11.55877362,2582.5,2582.3,3.87247989]
[1749148878238,1.828,2582.5,2582.4,3.87236679]
[1749148878641,2.614,2582.8,2582.7,3.87191698]
[1749148878857,9.252,2582.8,2582.7,3.87191698]
[1749148879074,0.36138184,2583.0,2582.9,3.87161717]
[1749148879387,2.19037587,2583.1,2583.0,3.87146728]
[1749148879589,2.19037587,2583.1,2582.9,3.87153848]
[1749148879590,8.83770355,2583.1,2582.9,3.87153848]
[1749148879788,8.83770355,2583.1,2583.0,3.87146728]
[1749148880090,12.83770355,2583.1,2582.9,3.8715351]
[1749148880259,13.19900076,2583.1,2582.9,3.8715351]
[1749148880459,12.83770355,2583.1,2583.0,3.87146728]
[1749148880757,5.829,2583.1,2583.0,3.87146728]
[1749148880964,12.467,2583.1,2583.0,3.87146728]
[1749148881892,8.467,2583.1,2583.0,3.87146728]
[1749148882184,8.467,2583.1,2582.9,3.87154293]
[1749148882387,8.467,2583.1,2583.0,3.87146728]
[1749148882588,9.42831835,2583.1,2582.8,3.87167902]
[1749148882779,9.42831835,2583.1,2582.9,3.87154501]
[1749148883695,9.42831835,2583.1,2582.8,3.87171933]
[1749148884081,9.73077362,2582.9,2582.7,3.87183427]
[1749148884395,11.64668282,2582.9,2582.8,3.87176707]
[1749148884892,2.79031835,2583.1,2582.9,3.87149974]
[1749148885191,2.79031835,2583.1,2583.0,3.87146728]
[1749148885396,1.829,2583.1,2583.0,3.87146728]
[1749148885581,3.68638411,2583.5,2582.9,3.87149974]
[1749148885782,2.594,2583.5,2583.4,3.87086784]
[1749148885981,12.462,2583.5,2583.4,3.87086784]
[1749148886192,5.825,2583.5,2583.4,3.87086784]
[1749148886394,12.462,2583.5,2583.4,3.87086784]
[1749148886612,4.0,2583.5,2583.4,3.87086784]
[1749148886796,10.637,2583.5,2583.4,3.87086784]
[1749148886995,6.637,2583.5,2583.4,3.87086784]
[1749148887713,6.637,2583.5,2582.6,3.87205379]
[1749148887905,6.637,2583.5,2583.4,3.87086784]
[1749148889115,11.55577362,2583.6,2583.4,3.87086784]
[1749148889323,1.825,2583.6,2583.5,3.87071801]
[1749148889540,8.461,2583.6,2583.5,3.87071801]
[1749148889719,11.14438527,2583.8,2583.7,3.87041839]
[1749148889928,10.688,2583.8,2583.7,3.87041839]
[1749148890126,17.323,2583.8,2583.7,3.87041839]
[1749148890348,0.5,2583.8,2583.7,3.87041839]
[1749148890504,0.5,2583.8,2583.7,4.64451408]
[1749148890505,7.135,2583.8,2583.7,4.64451408]
[1749148890830,0.5,2583.8,2583.7,3.87041839]
[1749148891029,7.135,2583.8,2583.7,3.87041839]
[1749148891906,7.135,2583.8,2583.7,3.91041839]
[1749148891907,0.5,2583.8,2583.7,3.91041839]
[1749148892346,7.135,2583.8,2583.7,3.91041839]
[1749148893631,6.635,2583.8,2583.7,3.91041839]
[1749148894410,6.635,2583.8,2583.7,3.87041839]
[1749148894623,6.635,2583.8,2583.2,0.04]
[1749148894853,6.635,2583.8,2583.7,3.87041839]
[1749148895149,7.3005,2583.8,2582.9,3.87161717]
[1749148895358,1.824,2583.7,2583.4,3.87083693]
[1749148895503,0.7797,2583.6,2583.4,3.87077198]
[1749148895706,0.7797,2583.6,2583.5,3.87071801]
[1749148897755,0.7797,2583.6,2583.2,3.8711025]
[1749148897959,0.7797,2583.6,2582.3,4.42248003]
[1749148897960,0.7789,2583.3,2582.9,3.87161203]
[1749148898158,20.2349482,2583.2,2582.7,3.87181461]
[1749148898329,1.824,2583.1,2582.3,0.38845777]
[1749148898524,1.824,2583.1,2582.7,3.87184918]
[1749148898720,9.73077362,2582.9,2582.6,3.87199156]
[1749148898943,7.68396736,2582.8,2582.6,3.87199156]
[1749148899762,11.55574075,2582.8,2582.3,3.87244416]
[1749148899934,9.73077362,2582.6,2582.3,3.87244197]
[1749148900276,1.824,2582.5,2582.3,3.87244197]
[1749148901263,1.824,2582.5,2582.4,3.87236679]
[1749148901480,8.456,2582.5,2582.4,3.87236679]
[1749148901785,0.7789,2582.7,2582.6,3.8720669]
[1749148902063,0.7789,2582.7,2582.3,3.87247274]
[1749148902064,9.2359,2582.7,2582.3,3.87247274]
[1749148902263,11.2737797,2582.7,2582.2,3.87260294]
[1749148902566,11.2737797,2582.7,2582.4,3.87226379]
[1749148902567,9.73077362,2582.6,2582.4,3.87226379]
[1749148903360,9.73077362,2582.6,2582.3,3.87245973]
[1749148903563,3.87229179,2582.5,2582.0,3.87284736]
[1749148903730,0.7789,2582.2,2581.9,3.87301478]
[1749148903933,6.632,2582.1,2582.0,3.87287905]
[1749148904128,6.632,2582.1,2581.9,3.87308318]
[1749148904129,8.456,2582.1,2581.9,3.87308318]
[1749148904335,8.456,2582.1,2581.8,3.87317426]
[1749148904527,8.456,2582.1,2581.8,3.87325249]
[1749148904729,10.73982485,2582.1,2581.9,3.87309935]
[1749148905172,0.8212,2581.9,2581.1,0.02]
[1749148905398,9.73077362,2581.7,2581.3,3.87388466]
[1749148905534,6.633,2581.6,2581.4,3.87381599]
[1749148905738,6.633,2581.6,2581.5,3.87371683]
[1749148906183,6.633,2581.6,2581.4,3.87380674]
[1749148906482,1.63637736,2581.6,2581.5,3.87371683]
[1749148906680,1.825,2581.9,2581.6,3.87355373]
[1749148906849,1.825,2581.9,2581.8,3.87326671]
[1749148907174,8.458,2581.9,2581.2,0.04]
[1749148907358,18.18877362,2581.9,2581.7,3.87330002]
[1749148907561,20.08410098,2581.9,2581.7,3.87330002]
[1749148907774,20.08410098,2581.9,2581.5,3.87370369]
[1749148907979,20.08410098,2581.9,2581.1,0.02]
[1749148907980,20.08410098,2581.9,2581.6,3.87353344]
[1749148908275,20.08410098,2581.9,2581.1,0.02]
[1749148908581,0.7703,2581.8,2581.5,3.87364288]
[1749148908767,2.01446567,2581.7,2581.2,3.87416705]
[1749148908967,2.01446567,2581.7,2581.4,3.87378188]
[1749148909164,2.01446567,2581.7,2581.3,3.87394027]
[1749148909479,2.01446567,2581.7,2581.4,3.87382793]
[1749148909480,9.73077362,2581.6,2581.4,3.87382793]
[1749148909680,0.7703,2581.8,2581.5,3.87371683]
[1749148909851,8.458,2581.5,2581.4,3.87386689]
[1749148910448,8.458,2581.5,2581.3,3.87390219]
[1749148910645,8.458,2581.5,2581.4,3.87386689]
[1749148911599,9.73077362,2581.7,2581.5,3.87363865]
[1749148911788,8.458,2581.6,2581.4,3.8737952]
[1749148912089,1.81887736,2581.5,2581.1,3.89418475]
[1749148912383,1.81887736,2581.5,2581.3,3.87398922]
[1749148912680,1.81887736,2581.5,2581.1,0.02]
[1749148912891,10.52347362,2581.4,2581.1,0.02]
[1749148913103,1.2342351,2581.3,2581.1,0.02]
[1749148913272,6.633,2581.2,2581.1,0.02]
[1749148914068,7.4257,2581.2,2581.1,0.02]
[1749148914796,7.4257,2581.2,2580.8,3.87467852]
[1749148915002,9.73077362,2581.1,2580.8,3.87467852]
[1749148915207,1.821,2581.0,2580.8,3.87467852]
[1749148915497,1.821,2581.0,2580.7,3.87487355]
[1749148915903,3.71874736,2581.0,2580.7,3.87487355]
[1749148916103,3.71874736,2581.0,2580.2,3.87566855]
[1749148916104,9.73077362,2580.8,2580.2,3.87566855]
[1749148916274,0.7919,2580.9,2580.2,3.87566855]
[1749148916475,0.7919,2580.9,2580.1,0.06]
[1749148916476,0.7919,2580.9,2580.8,3.87476751]
[1749148916876,8.454,2580.9,2580.8,3.87476751]
[1749148917200,8.454,2580.9,2580.3,3.87544879]
[1749148917399,8.454,2580.9,2580.7,3.87484076]
[1749148917570,8.454,2580.9,2580.8,3.87476751]
[1749148919280,1.822,2581.1,2581.0,3.87446726]
[1749148919597,8.455,2581.1,2581.0,3.87446726]
[1749148920868,8.455,2581.1,2580.6,0.04]
[1749148921078,8.455,2581.1,2581.0,3.87446726]
[1749148921305,19.03127362,2581.1,2580.8,3.87474699]
[1749148921504,18.18577362,2581.1,2580.9,3.87457884]
[1749148921714,18.18577362,2581.1,2580.8,3.87469494]
[1749148921910,18.18577362,2581.1,2580.9,3.87459961]
[1749148922069,18.18577362,2581.1,2580.5,3.87519452]
[1749148922275,8.455,2581.1,2580.6,3.87506781]
[1749148922476,8.455,2581.1,2580.8,3.8746269]
[1749148922697,8.455,2581.1,2580.9,3.8745404]
[1749148922871,8.455,2581.1,2580.9,3.87455405]
[1749148923174,0.8097,2581.0,2580.4,0.04]
[1749148923371,0.8097,2581.0,2580.2,16.0]
[1749148923570,9.73077362,2580.5,2580.1,0.02]
[1749148923822,9.73077362,2580.2,2580.1,0.02]
[1749148924368,9.73077362,2580.2,2580.1,3.89581876]
[1749148924604,8.455,2580.4,2580.1,0.02]
[1749148924825,16.0,2580.3,2580.1,0.02]
[1749148924975,32.17627362,2580.2,2580.1,0.02]
[1749148925488,36.05194217,2580.2,2580.1,0.02]
[1749148925795,32.43019556,2580.2,2580.1,0.02]
[1749148928336,40.88519556,2580.2,2580.1,0.02]
[1749148928679,41.25385642,2580.2,2580.1,0.02]
[1749148928879,44.88519556,2580.2,2580.1,0.02]
[1749148929120,45.25385355,2580.2,2580.1,0.02]
[1749148929409,49.67952259,2580.2,2580.1,0.02]
[1749148930480,50.03953912,2580.2,2580.1,0.02]
[1749148931293,50.03980061,2580.2,2580.1,0.02]
[1749148931644,50.03959677,2580.2,2580.1,0.02]
[1749148931818,0.7753,2579.7,2579.2,3.87704658]
[1749148931987,9.73077362,2579.5,2579.2,3.87704658]
[1749148932178,9.73077362,2579.5,2579.1,0.02]
[1749148932374,2.83106264,2579.4,2579.1,0.02]
[1749148932606,2.83106264,2579.4,2579.2,3.87712823]
[1749148932990,2.83106264,2579.4,2579.3,3.87702089]
[1749148933186,5.01623733,2579.4,2579.3,3.87702089]
[1749148933430,5.01623733,2579.4,2579.2,3.87709838]
[1749148933936,5.01623733,2579.4,2579.1,0.02]
[1749148934083,9.73077362,2579.2,2579.1,0.02]
[1749148934285,15.06647362,2579.2,2579.1,0.02]
[1749148934497,20.30396988,2579.2,2579.1,0.02]
[1749148934687,20.67271648,2579.2,2579.1,0.02]
[1749148935196,33.00688769,2579.2,2579.1,0.02]
[1749148935603,48.22118769,2579.2,2579.1,0.02]
[1749148935811,0.7688,2578.9,2578.1,0.02]
[1749148936141,9.73077362,2578.6,2578.2,3.87857984]
[1749148936306,0.7688,2578.4,2578.1,3.89878806]
[1749148936714,2.80706264,2578.3,2578.2,3.87865724]
[1749148937723,2.80706264,2578.3,2578.1,0.02]
[1749148938037,2.80706264,2578.3,2578.2,3.87867504]
[1749148938236,2.80706264,2578.3,2578.1,0.02]
[1749148938537,0.8005,2578.2,2578.1,3.89882549]
[1749148938940,3.60756264,2578.2,2578.1,3.89882549]
[1749148939534,2.80706264,2578.2,2578.1,3.89882549]
[1749148939744,11.26506264,2578.2,2578.1,3.89882549]
[1749148940543,4.63006264,2578.2,2578.1,3.89882549]
[1749148940716,2.80706264,2578.2,2578.1,3.89882549]
[1749148940919,2.80706264,2578.2,2578.1,4.67660481]
[1749148941102,9.44206264,2578.2,2578.1,4.71660481]
[1749148941309,2.80706264,2578.2,2578.1,20.71660481]
[1749148941531,9.44206264,2578.2,2578.1,20.71660481]
[1749148942646,2.80706264,2578.2,2578.1,20.71660481]
[1749148942807,9.44206264,2578.2,2578.1,20.71660481]
[1749148943166,2.80706264,2578.2,2578.1,20.71660481]
[1749148943323,9.44206264,2578.2,2578.1,20.71660481]
[1749148945227,9.44206264,2578.2,2578.1,19.93882549]
[1749148946145,9.44206264,2578.2,2578.1,19.89882549]
[1749148946440,9.44106264,2578.2,2578.1,3.89882549]
[1749148947149,19.97983626,2578.2,2578.1,3.89882549]
[1749148947310,22.1966614,2578.2,2576.8,3.92065016]
[1749148947513,9.73077362,2577.8,2577.7,3.87942739]
[1749148947711,9.73077362,2577.8,2577.6,3.87955505]
[1749148947712,16.36477362,2577.8,2577.6,3.87957115]
[1749148947941,17.11537362,2577.8,2577.1,0.02]
[1749148948269,8.82243302,2577.7,2577.5,3.87964017]
[1749148948478,0.7506,2577.5,2577.4,3.87984845]
[1749148948614,0.7506,2577.5,2577.4,3.87987894]
[1749148949160,0.36845536,2577.7,2577.6,3.8795779]
[1749148949370,12.454,2577.7,2577.1,3.90029637]
[1749148949568,6.634,2577.6,2577.1,0.02]
[1749148949725,18.09120452,2577.6,2577.4,3.87973814]
[1749148949925,18.09127668,2577.6,2577.5,3.87972841]
[1749148950157,17.72274916,2577.6,2577.5,3.87972841]
[1749148950471,5.72650207,2577.6,2577.5,3.87972841]
[1749148950682,12.454,2577.6,2577.5,3.87972841]
[1749148950975,8.454,2577.6,2577.5,3.87972841]
[1749148951276,1.12582653,2577.8,2577.7,3.87942739]
[1749148951571,8.96252464,2577.8,2577.6,3.87947778]
[1749148951777,8.96252464,2577.8,2577.1,0.02]
[1749148951778,10.86870712,2577.8,2577.1,0.02]
[1749148951937,10.86870712,2577.8,2577.5,3.87963839]
[1749148952136,10.86870712,2577.8,2577.1,0.02]
[1749148952137,10.86870712,2577.8,2577.7,3.87942739]
[1749148952337,11.23729305,2577.8,2577.7,3.87942739]
[1749148952673,9.33111057,2577.8,2577.5,3.87959102]
[1749148952882,0.36858593,2577.7,2577.1,3.90030705]
[1749148953085,8.82358593,2577.6,2577.5,3.8795915]
[1749148953775,8.82358593,2577.6,2577.4,3.87979934]
[1749148953776,12.82358593,2577.6,2577.4,3.87979934]
[1749148954074,12.82358593,2577.6,2577.2,3.88006242]
[1749148954075,4.0,2577.6,2577.5,3.87972841]
[1749148954376,4.0,2577.6,2577.1,0.02]
[1749148954377,13.27478598,2577.6,2577.4,3.87981091]
[1749148954563,12.90575246,2577.6,2577.5,3.87972841]
[1749148954762,13.27488104,2577.6,2577.5,3.87972841]
[1749148955151,6.63988104,2577.6,2577.5,3.87972841]
[1749148955391,4.0,2577.6,2577.5,3.87972841]
[1749148955689,0.50752464,2577.8,2577.6,3.8795779]
[1749148955888,4.0,2577.7,2577.6,3.8795779]
[1749148956237,10.635,2577.7,2577.6,3.8795779]
[1749148956433,6.635,2577.7,2577.6,3.8795779]
[1749148957279,2.09622792,2578.1,2578.0,3.87897595]
[1749148957579,8.73122792,2578.1,2578.0,3.87897595]
[1749148957876,2.09622792,2578.1,2578.0,3.87897595]
[1749148958038,10.55122792,2578.1,2578.0,3.87897595]
[1749148958238,2.09622792,2578.1,2578.0,3.87897595]
[1749148958437,10.55122792,2578.1,2578.0,3.87897595]
[1749148958661,3.91622792,2578.1,2578.0,3.87897595]
[1749148958978,10.55122792,2578.1,2578.0,3.87897595]
[1749148959357,11.60635071,2578.1,2578.0,3.87897595]
[1749148959555,3.15135071,2578.1,2578.0,3.87897595]
[1749148959753,10.55122792,2578.1,2578.0,3.87897595]
[1749148960380,11.05122792,2578.1,2578.0,3.87897595]
[1749148961726,4.78652026,2578.1,2578.0,3.87897595]
[1749148961839,11.05022792,2578.1,2578.0,3.87897595]
[1749148962046,4.41622792,2578.1,2578.0,3.87897595]
[1749148962376,11.05022792,2578.1,2578.0,3.87897595]
[1749148963373,11.42064843,2578.1,2578.0,3.87897595]
[1749148963679,11.42079376,2578.1,2578.0,3.87897595]
[1749148964269,12.56287314,2578.1,2578.0,3.87897595]
[1749148965607,11.42079376,2578.1,2578.0,3.87897595]
[1749148965747,2.59622792,2578.1,2578.0,3.87897595]
[1749148966058,9.22922792,2578.1,2578.0,3.87897595]
[1749148966259,9.22922792,2578.1,2578.0,4.16867595]
[1749148966484,2.59622792,2578.1,2578.0,4.16867595]
[1749148966782,9.22922792,2578.1,2578.0,4.9734538]
[1749148967340,9.22922792,2578.1,2578.0,4.16867595]
[1749148969548,2.59622792,2578.1,2578.0,4.16867595]
[1749148969746,2.59622792,2578.1,2578.0,20.16867595]
[1749148970098,9.22822792,2578.1,2578.0,20.16867595]
[1749148970242,2.59622792,2578.1,2578.0,20.71867595]
[1749148970559,9.22822792,2578.1,2578.0,24.1895308]
[1749148971141,2.59622792,2578.1,2578.0,24.1895308]
[1749148972361,9.22722792,2578.1,2578.0,24.1895308]
[1749148978868,2.59622792,2578.1,2578.0,24.1895308]
[1749148979070,9.22522792,2578.1,2578.0,24.1895308]
[1749148979867,9.22522792,2578.1,2578.0,19.87897595]
[1749148980660,9.22522792,2578.1,2578.0,3.87897595]
[1749148981761,2.59622792,2578.1,2578.0,19.87897595]
[1749148982257,2.59622792,2578.1,2578.0,20.42897595]
[1749148982458,9.22422792,2578.1,2578.0,20.42897595]
[1749148982664,9.22422792,2578.1,2578.0,23.35147146]
[1749148984334,9.22422792,2578.1,2578.0,19.87897595]
[1749148986581,2.59622792,2578.1,2578.0,19.87897595]
[1749148986902,9.22422792,2578.1,2578.0,19.87897595]
[1749148987892,2.59622792,2578.1,2578.0,19.87897595]
[1749148988089,9.22322792,2578.1,2578.0,19.87897595]
[1749148988295,9.22322792,2578.1,2578.0,22.58318159]
[1749148988639,2.59622792,2578.1,2578.0,22.58318159]
[1749148988801,0.5,2578.1,2578.0,32.86395521]
[1749148988987,7.127,2578.1,2578.0,32.86395521]
[1749148989188,7.127,2578.1,2578.0,23.13318159]
[1749148989387,0.21712743,2578.7,2578.6,4.42807337]
[1749148989617,5.01005261,2578.9,2578.8,20.4277726]
[1749148989825,0.8029,2579.4,2579.3,3.87702089]
[1749148990034,11.4299,2579.4,2579.3,3.87702089]
[1749148990587,7.4299,2579.4,2579.2,3.87712385]
[1749148990785,3.53206736,2579.3,2579.2,3.87712385]
[1749148991182,1.71606736,2579.3,2579.2,3.87712385]
[1749148991490,10.15906736,2579.3,2579.2,3.87712385]
[1749148992464,1.71606736,2579.3,2579.2,3.87712385]
[1749148992682,8.442,2579.3,2579.2,3.87712385]
[1749148993649,9.2185,2579.3,2579.1,3.87724569]
[1749148994048,0.8174,2579.2,2579.1,3.87724569]
[1749148994253,0.8174,2579.2,2579.0,3.87742456]
[1749148994448,0.8174,2579.2,2579.1,3.87732154]
[1749148994650,2.7535131,2579.2,2579.1,3.87732154]
[1749148995924,2.7535131,2579.2,2578.5,3.87822377]
[1749148995925,0.7968,2579.1,2578.5,3.87822377]
[1749148996125,0.7968,2579.1,2578.4,16.0]
[1749148996126,0.7968,2579.1,2578.9,3.87761922]
[1749148996555,0.7968,2579.1,2578.8,3.87768687]
[1749148996722,0.7968,2579.1,2578.4,19.87834789]
[1749148996926,0.7933,2579.0,2578.4,16.0]
[1749148997253,6.625,2578.9,2578.8,3.87766427]
[1749148998147,7.4183,2578.9,2578.7,3.87785051]
[1749148998468,0.7933,2578.8,2578.7,3.87785051]
[1749148998764,1.1645304,2578.8,2578.6,3.87804168]
[1749148998964,1.5722503,2578.8,2578.7,3.87792298]
[1749148999139,13.60556382,2578.8,2578.7,3.87792298]
[1749148999340,13.2343,2578.8,2578.7,3.87792298]
[1749148999842,13.60556382,2578.8,2578.7,3.87792298]
[1749149000365,13.2343,2578.8,2578.7,3.87792298]
[1749149000771,13.2343,2578.8,2578.6,3.87801883]
[1749149000973,2.70489756,2578.7,2578.3,3.87847354]
[1749149001267,0.8294,2578.6,2578.4,3.87825773]
[1749149001467,1.19231353,2578.6,2578.4,3.87825773]
[1749149001760,1.1923178,2578.6,2578.5,3.87822377]
[1749149001928,1.1923178,2578.6,2578.4,3.87832559]
[1749149002135,0.8294,2578.6,2578.4,3.87836301]
[1749149002334,1.20066293,2578.6,2578.4,3.87836301]
[1749149003162,2.7981926,2578.6,2578.4,3.87836301]
[1749149003475,2.7981926,2578.6,2578.2,3.87858675]
[1749149003646,0.36286097,2578.5,2578.1,3.87877873]
[1749149003830,0.36286097,2578.5,2577.8,20.26024989]
[1749149003831,6.624,2578.4,2578.2,3.87854487]
[1749149004027,4.0,2578.8,2578.3,10.28077362]
[1749149004339,0.37112442,2579.4,2579.3,3.87702089]
[1749149004538,10.99512442,2579.4,2579.1,3.8772599]
[1749149004741,10.99512442,2579.4,2579.3,3.87702089]
[1749149005053,10.98668937,2579.4,2579.3,3.87702089]
[1749149005259,6.98668937,2579.4,2579.1,3.87722058]
[1749149005463,8.37975647,2579.4,2579.2,3.87707647]
[1749149005769,7.64594268,2579.4,2579.1,3.87725085]
[1749149005970,1.38454084,2579.4,2579.1,3.87725085]
[1749149006173,0.5,2579.2,2579.1,3.87725085]
[1749149006966,2.313,2579.2,2579.1,3.87725085]
[1749149007173,8.937,2579.2,2579.1,3.87725085]
[1749149007531,0.5,2579.2,2579.1,3.87725085]
[1749149007729,7.123,2579.2,2579.1,4.65272148]
[1749149009537,0.5,2579.2,2579.1,4.65272148]
[1749149009736,7.123,2579.2,2579.1,4.65272148]
[1749149010437,7.123,2579.2,2579.1,5.04392918]
[1749149011176,0.5,2579.2,2579.1,21.04392918]
[1749149011344,7.122,2579.2,2579.1,21.04392918]
[1749149012573,7.122,2579.2,2579.1,5.04392918]
[1749149013579,7.122,2579.2,2579.1,4.65272148]
[1749149014734,7.122,2579.2,2579.1,5.04513159]
[1749149015687,0.5,2579.2,2579.1,5.33483159]
[1749149015987,7.121,2579.2,2579.1,21.33483159]